{"text_format":"3","workbook":"xlsx","n_sheets":1,"sheets":["Osobní měsíční rozpočet"],"read":"whole","date_system":"1900"}

{"sheet":"Osobní měsíční rozpočet","index":0,"n_rows":64,"n_cols":10,"rows_kept":64,"merged":[[1,1,1,9],[2,1,2,9],[4,1,6,1],[4,2,4,3],[4,6,5,8],[4,9,5,9],[5,2,5,3],[6,2,6,3],[6,6,7,8],[6,9,7,9],[7,1,9,1],[7,2,7,3],[8,2,8,3],[8,6,9,8],[8,9,9,9],[9,2,9,3],[22,6,22,9],[23,1,23,4],[31,6,31,9],[33,1,33,4],[38,6,38,9],[40,1,40,4],[44,6,44,9],[46,1,46,4],[50,6,50,9],[54,1,54,4],[57,6,57,9],[58,6,59,8],[58,9,59,9],[60,6,61,8],[60,9,61,9],[62,6,63,8],[62,9,63,9]]}
[]
[null,"Osobní měsíční rozpočet"]
[]
[]
[null,"PŘEDPOKLÁDANÉ MĚSÍČNÍ PŘÍJMY","Příjem 1",null,{"v":2500,"d":"2,500 Kč"},null,"PŘEDPOKLÁDANÝ ZŮSTATEK (předpokládané příjmy minus výdaje)",null,null,{"$f":"E7-J59","v":{"v":940,"d":"940 Kč"}}]
[null,null,"Jiné příjmy",null,{"v":500,"d":"500 Kč"}]
[null,null,"Celkové měsíční příjmy",null,{"$f":"SUM(E5:E6)","v":{"v":3000,"d":"3,000 Kč"}},null,"SKUTEČNÝ ZŮSTATEK (skutečné příjmy minus výdaje)",null,null,{"$f":"E10-J61","v":{"v":960,"d":"960 Kč"}}]
[null,"SKUTEČNÉ MĚSÍČNÍ PŘÍJMY","Příjem 1",null,{"v":2500,"d":"2,500 Kč"}]
[null,null,"Jiné příjmy",null,{"v":500,"d":"500 Kč"},null,"ROZDÍL (skutečnost minus předpoklad)",null,null,{"$f":"J7-J5","v":{"v":20,"d":"20 Kč"}}]
[null,null,"Celkové měsíční příjmy",null,{"$f":"SUM(E8:E9)","v":{"v":3000,"d":"3,000 Kč"}}]
[]
[null,"BYDLENÍ","Předpokládané náklady","Skutečné náklady","Rozdíl",null,"ZÁBAVA","Předpokládané náklady","Skutečné náklady","Rozdíl"]
[null,"Hypotéka nebo nájemné",{"v":1500,"d":"1,500 Kč"},{"v":1400,"d":"1,400 Kč"},{"$f":"Tabulka1[[#This Row],[Předpokládané náklady]]-Tabulka1[[#This Row],[Skutečné náklady]]","v":{"v":100,"d":"100 Kč"}},null,"Video/DVD",{"v":0,"d":"0 Kč"},{"v":50,"d":"50 Kč"},{"$f":"Tabulka2[[#This Row],[Předpokládané náklady]]-Tabulka2[[#This Row],[Skutečné náklady]]","v":{"v":-50,"d":"-50 Kč"}}]
[null,"Telefon",{"v":60,"d":"60 Kč"},{"v":100,"d":"100 Kč"},{"$f":"Tabulka1[[#This Row],[Předpokládané náklady]]-Tabulka1[[#This Row],[Skutečné náklady]]","v":{"v":-40,"d":"-40 Kč"}},null,"CD",null,null,{"$f":"Tabulka2[[#This Row],[Předpokládané náklady]]-Tabulka2[[#This Row],[Skutečné náklady]]","v":{"v":0,"d":"0 Kč"}}]
[null,"Elektřina",{"v":50,"d":"50 Kč"},{"v":60,"d":"60 Kč"},{"$f":"Tabulka1[[#This Row],[Předpokládané náklady]]-Tabulka1[[#This Row],[Skutečné náklady]]","v":{"v":-10,"d":"-10 Kč"}},null,"Filmy",null,null,{"$f":"Tabulka2[[#This Row],[Předpokládané náklady]]-Tabulka2[[#This Row],[Skutečné náklady]]","v":{"v":0,"d":"0 Kč"}}]
[null,"Plyn",{"v":200,"d":"200 Kč"},{"v":180,"d":"180 Kč"},{"$f":"Tabulka1[[#This Row],[Předpokládané náklady]]-Tabulka1[[#This Row],[Skutečné náklady]]","v":{"v":20,"d":"20 Kč"}},null,"Koncerty",null,null,{"$f":"Tabulka2[[#This Row],[Předpokládané náklady]]-Tabulka2[[#This Row],[Skutečné náklady]]","v":{"v":0,"d":"0 Kč"}}]
[null,"Vodné a stočné",null,null,{"$f":"Tabulka1[[#This Row],[Předpokládané náklady]]-Tabulka1[[#This Row],[Skutečné náklady]]","v":{"v":0,"d":"0 Kč"}},null,"Sport",null,null,{"$f":"Tabulka2[[#This Row],[Předpokládané náklady]]-Tabulka2[[#This Row],[Skutečné náklady]]","v":{"v":0,"d":"0 Kč"}}]
[null,"Kabelová televize",null,null,{"$f":"Tabulka1[[#This Row],[Předpokládané náklady]]-Tabulka1[[#This Row],[Skutečné náklady]]","v":{"v":0,"d":"0 Kč"}},null,"Divadlo",null,null,{"$f":"Tabulka2[[#This Row],[Předpokládané náklady]]-Tabulka2[[#This Row],[Skutečné náklady]]","v":{"v":0,"d":"0 Kč"}}]
[null,"Poplatky za odpady",null,null,{"$f":"Tabulka1[[#This Row],[Předpokládané náklady]]-Tabulka1[[#This Row],[Skutečné náklady]]","v":{"v":0,"d":"0 Kč"}},null,"Jiné",null,null,{"$f":"Tabulka2[[#This Row],[Předpokládané náklady]]-Tabulka2[[#This Row],[Skutečné náklady]]","v":{"v":0,"d":"0 Kč"}}]
[null,"Údržba a opravy",null,null,{"$f":"Tabulka1[[#This Row],[Předpokládané náklady]]-Tabulka1[[#This Row],[Skutečné náklady]]","v":{"v":0,"d":"0 Kč"}},null,"Jiné",null,null,{"$f":"Tabulka2[[#This Row],[Předpokládané náklady]]-Tabulka2[[#This Row],[Skutečné náklady]]","v":{"v":0,"d":"0 Kč"}}]
[null,"Zásoby",null,null,{"$f":"Tabulka1[[#This Row],[Předpokládané náklady]]-Tabulka1[[#This Row],[Skutečné náklady]]","v":{"v":0,"d":"0 Kč"}},null,"Jiné",null,null,{"$f":"Tabulka2[[#This Row],[Předpokládané náklady]]-Tabulka2[[#This Row],[Skutečné náklady]]","v":{"v":0,"d":"0 Kč"}}]
[null,"Jiné",null,null,{"$f":"Tabulka1[[#This Row],[Předpokládané náklady]]-Tabulka1[[#This Row],[Skutečné náklady]]","v":{"v":0,"d":"0 Kč"}},null,"Celkem",{"$f":"SUBTOTAL(109,Tabulka2[Předpokládané náklady])","v":{"v":0,"d":"0 Kč"}},{"$f":"SUBTOTAL(109,Tabulka2[Skutečné náklady])","v":{"v":50,"d":"50 Kč"}},{"$f":"SUBTOTAL(109,Tabulka2[Rozdíl])","v":{"v":-50,"d":"-50 Kč"}}]
[null,"Celkem",{"$f":"SUBTOTAL(109,Tabulka1[Předpokládané náklady])","v":{"v":1810,"d":"1,810 Kč"}},{"$f":"SUBTOTAL(109,Tabulka1[Skutečné náklady])","v":{"v":1740,"d":"1,740 Kč"}},{"$f":"SUBTOTAL(109,Tabulka1[Rozdíl])","v":{"v":70,"d":"70 Kč"}}]
[{"$nulls":6},"PŮJČKY","Předpokládané náklady","Skutečné náklady","Rozdíl"]
[null,"DOPRAVA","Předpokládané náklady","Skutečné náklady","Rozdíl",null,"Osobní",null,null,{"$f":"Tabulka8[[#This Row],[Předpokládané náklady]]-Tabulka8[[#This Row],[Skutečné náklady]]","v":{"v":0,"d":"0 Kč"}}]
[null,"Splátka automobilu",{"v":250,"d":"250 Kč"},{"v":250,"d":"250 Kč"},{"$f":"Tabulka3[[#This Row],[Předpokládané náklady]]-Tabulka3[[#This Row],[Skutečné náklady]]","v":{"v":0,"d":"0 Kč"}},null,"Studentské",null,null,{"$f":"Tabulka8[[#This Row],[Předpokládané náklady]]-Tabulka8[[#This Row],[Skutečné náklady]]","v":{"v":0,"d":"0 Kč"}}]
[null,"Autobusy/taxi",null,null,{"$f":"Tabulka3[[#This Row],[Předpokládané náklady]]-Tabulka3[[#This Row],[Skutečné náklady]]","v":{"v":0,"d":"0 Kč"}},null,"Kreditní karta",null,null,{"$f":"Tabulka8[[#This Row],[Předpokládané náklady]]-Tabulka8[[#This Row],[Skutečné náklady]]","v":{"v":0,"d":"0 Kč"}}]
[null,"Pojištění",null,null,{"$f":"Tabulka3[[#This Row],[Předpokládané náklady]]-Tabulka3[[#This Row],[Skutečné náklady]]","v":{"v":0,"d":"0 Kč"}},null,"Kreditní karta",null,null,{"$f":"Tabulka8[[#This Row],[Předpokládané náklady]]-Tabulka8[[#This Row],[Skutečné náklady]]","v":{"v":0,"d":"0 Kč"}}]
[null,"Poplatky",null,null,{"$f":"Tabulka3[[#This Row],[Předpokládané náklady]]-Tabulka3[[#This Row],[Skutečné náklady]]","v":{"v":0,"d":"0 Kč"}},null,"Kreditní karta",null,null,{"$f":"Tabulka8[[#This Row],[Předpokládané náklady]]-Tabulka8[[#This Row],[Skutečné náklady]]","v":{"v":0,"d":"0 Kč"}}]
[null,"Benzín",null,null,{"$f":"Tabulka3[[#This Row],[Předpokládané náklady]]-Tabulka3[[#This Row],[Skutečné náklady]]","v":{"v":0,"d":"0 Kč"}},null,"Jiné",null,null,{"$f":"Tabulka8[[#This Row],[Předpokládané náklady]]-Tabulka8[[#This Row],[Skutečné náklady]]","v":{"v":0,"d":"0 Kč"}}]
[null,"Údržba",null,null,{"$f":"Tabulka3[[#This Row],[Předpokládané náklady]]-Tabulka3[[#This Row],[Skutečné náklady]]","v":{"v":0,"d":"0 Kč"}},null,"Celkem",{"$f":"SUBTOTAL(109,Tabulka8[Předpokládané náklady])","v":{"v":0,"d":"0 Kč"}},{"$f":"SUBTOTAL(109,Tabulka8[Skutečné náklady])","v":{"v":0,"d":"0 Kč"}},{"$f":"SUBTOTAL(109,Tabulka8[Rozdíl])","v":{"v":0,"d":"0 Kč"}}]
[null,"Jiné",null,null,{"$f":"Tabulka3[[#This Row],[Předpokládané náklady]]-Tabulka3[[#This Row],[Skutečné náklady]]","v":{"v":0,"d":"0 Kč"}}]
[null,"Celkem",{"$f":"SUBTOTAL(109,Tabulka3[Předpokládané náklady])","v":{"v":250,"d":"250 Kč"}},{"$f":"SUBTOTAL(109,Tabulka3[Skutečné náklady])","v":{"v":250,"d":"250 Kč"}},{"$f":"SUBTOTAL(109,Tabulka3[Rozdíl])","v":{"v":0,"d":"0 Kč"}},null,"DANĚ","Předpokládané náklady","Skutečné náklady","Rozdíl"]
[{"$nulls":6},"Daně z příjmů",null,null,{"$f":"Tabulka9[[#This Row],[Předpokládané náklady]]-Tabulka9[[#This Row],[Skutečné náklady]]","v":{"v":0,"d":"0 Kč"}}]
[null,"POJIŠTĚNÍ","Předpokládané náklady","Skutečné náklady","Rozdíl",null,"Daně z nemovitostí",null,null,{"$f":"Tabulka9[[#This Row],[Předpokládané náklady]]-Tabulka9[[#This Row],[Skutečné náklady]]","v":{"v":0,"d":"0 Kč"}}]
[null,"Domácnost",null,null,{"$f":"Tabulka4[[#This Row],[Předpokládané náklady]]-Tabulka4[[#This Row],[Skutečné náklady]]","v":{"v":0,"d":"0 Kč"}},null,"Silniční daň",null,null,{"$f":"Tabulka9[[#This Row],[Předpokládané náklady]]-Tabulka9[[#This Row],[Skutečné náklady]]","v":{"v":0,"d":"0 Kč"}}]
[null,"Zdravotní",null,null,{"$f":"Tabulka4[[#This Row],[Předpokládané náklady]]-Tabulka4[[#This Row],[Skutečné náklady]]","v":{"v":0,"d":"0 Kč"}},null,"Jiné",null,null,{"$f":"Tabulka9[[#This Row],[Předpokládané náklady]]-Tabulka9[[#This Row],[Skutečné náklady]]","v":{"v":0,"d":"0 Kč"}}]
[null,"Životní",null,null,{"$f":"Tabulka4[[#This Row],[Předpokládané náklady]]-Tabulka4[[#This Row],[Skutečné náklady]]","v":{"v":0,"d":"0 Kč"}},null,"Celkem",{"$f":"SUBTOTAL(109,Tabulka9[Předpokládané náklady])","v":{"v":0,"d":"0 Kč"}},{"$f":"SUBTOTAL(109,Tabulka9[Skutečné náklady])","v":{"v":0,"d":"0 Kč"}},{"$f":"SUBTOTAL(109,Tabulka9[Rozdíl])","v":{"v":0,"d":"0 Kč"}}]
[null,"Jiné",null,null,{"$f":"Tabulka4[[#This Row],[Předpokládané náklady]]-Tabulka4[[#This Row],[Skutečné náklady]]","v":{"v":0,"d":"0 Kč"}}]
[null,"Celkem",{"$f":"SUBTOTAL(109,Tabulka4[Předpokládané náklady])","v":{"v":0,"d":"0 Kč"}},{"$f":"SUBTOTAL(109,Tabulka4[Skutečné náklady])","v":{"v":0,"d":"0 Kč"}},{"$f":"SUBTOTAL(109,Tabulka4[Rozdíl])","v":{"v":0,"d":"0 Kč"}},null,"SPOŘENÍ NEBO INVESTICE","Předpokládané náklady","Skutečné náklady","Rozdíl"]
[{"$nulls":6},"Penzijní pojištění",null,null,{"$f":"Tabulka10[[#This Row],[Předpokládané náklady]]-Tabulka10[[#This Row],[Skutečné náklady]]","v":{"v":0,"d":"0 Kč"}}]
[null,"JÍDLO","Předpokládané náklady","Skutečné náklady","Rozdíl",null,"Investiční účet",null,null,{"$f":"Tabulka10[[#This Row],[Předpokládané náklady]]-Tabulka10[[#This Row],[Skutečné náklady]]","v":{"v":0,"d":"0 Kč"}}]
[null,"Nákupy potravin",null,null,{"$f":"Tabulka5[[#This Row],[Předpokládané náklady]]-Tabulka5[[#This Row],[Skutečné náklady]]","v":{"v":0,"d":"0 Kč"}},null,"Jiné",null,null,{"$f":"Tabulka10[[#This Row],[Předpokládané náklady]]-Tabulka10[[#This Row],[Skutečné náklady]]","v":{"v":0,"d":"0 Kč"}}]
[null,"Večeře v restauraci",null,null,{"$f":"Tabulka5[[#This Row],[Předpokládané náklady]]-Tabulka5[[#This Row],[Skutečné náklady]]","v":{"v":0,"d":"0 Kč"}},null,"Celkem",{"$f":"SUBTOTAL(109,Tabulka10[Předpokládané náklady])","v":{"v":0,"d":"0 Kč"}},{"$f":"SUBTOTAL(109,Tabulka10[Skutečné náklady])","v":{"v":0,"d":"0 Kč"}},{"$f":"SUBTOTAL(109,Tabulka10[Rozdíl])","v":{"v":0,"d":"0 Kč"}}]
[null,"Jiné",null,null,{"$f":"Tabulka5[[#This Row],[Předpokládané náklady]]-Tabulka5[[#This Row],[Skutečné náklady]]","v":{"v":0,"d":"0 Kč"}}]
[null,"Celkem",{"$f":"SUBTOTAL(109,Tabulka5[Předpokládané náklady])","v":{"v":0,"d":"0 Kč"}},{"$f":"SUBTOTAL(109,Tabulka5[Skutečné náklady])","v":{"v":0,"d":"0 Kč"}},{"$f":"SUBTOTAL(109,Tabulka5[Rozdíl])","v":{"v":0,"d":"0 Kč"}},null,"DARY A PŘÍSPĚVKY","Předpokládané náklady","Skutečné náklady","Rozdíl"]
[{"$nulls":6},"Charita 1",null,null,{"$f":"Tabulka11[[#This Row],[Předpokládané náklady]]-Tabulka11[[#This Row],[Skutečné náklady]]","v":{"v":0,"d":"0 Kč"}}]
[null,"DOMÁCÍ ZVÍŘATA","Předpokládané náklady","Skutečné náklady","Rozdíl",null,"Charita 2",null,null,{"$f":"Tabulka11[[#This Row],[Předpokládané náklady]]-Tabulka11[[#This Row],[Skutečné náklady]]","v":{"v":0,"d":"0 Kč"}}]
[null,"Jídlo",null,null,{"$f":"Tabulka6[[#This Row],[Předpokládané náklady]]-Tabulka6[[#This Row],[Skutečné náklady]]","v":{"v":0,"d":"0 Kč"}},null,"Charita 3",null,null,{"$f":"Tabulka11[[#This Row],[Předpokládané náklady]]-Tabulka11[[#This Row],[Skutečné náklady]]","v":{"v":0,"d":"0 Kč"}}]
[null,"Zdravotní péče",null,null,{"$f":"Tabulka6[[#This Row],[Předpokládané náklady]]-Tabulka6[[#This Row],[Skutečné náklady]]","v":{"v":0,"d":"0 Kč"}},null,"Celkem",{"$f":"SUBTOTAL(109,Tabulka11[Předpokládané náklady])","v":{"v":0,"d":"0 Kč"}},{"$f":"SUBTOTAL(109,Tabulka11[Skutečné náklady])","v":{"v":0,"d":"0 Kč"}},{"$f":"SUBTOTAL(109,Tabulka11[Rozdíl])","v":{"v":0,"d":"0 Kč"}}]
[null,"Péče o vzhled",null,null,{"$f":"Tabulka6[[#This Row],[Předpokládané náklady]]-Tabulka6[[#This Row],[Skutečné náklady]]","v":{"v":0,"d":"0 Kč"}}]
[null,"Hračky",null,null,{"$f":"Tabulka6[[#This Row],[Předpokládané náklady]]-Tabulka6[[#This Row],[Skutečné náklady]]","v":{"v":0,"d":"0 Kč"}},null,"PRÁVNÍ","Předpokládané náklady","Skutečné náklady","Rozdíl"]
[null,"Jiné",null,null,{"$f":"Tabulka6[[#This Row],[Předpokládané náklady]]-Tabulka6[[#This Row],[Skutečné náklady]]","v":{"v":0,"d":"0 Kč"}},null,"Advokát",null,null,{"$f":"Tabulka12[[#This Row],[Předpokládané náklady]]-Tabulka12[[#This Row],[Skutečné náklady]]","v":{"v":0,"d":"0 Kč"}}]
[null,"Celkem",{"$f":"SUBTOTAL(109,Tabulka6[Předpokládané náklady])","v":{"v":0,"d":"0 Kč"}},{"$f":"SUBTOTAL(109,Tabulka6[Skutečné náklady])","v":{"v":0,"d":"0 Kč"}},{"$f":"SUBTOTAL(109,Tabulka6[Rozdíl])","v":{"v":0,"d":"0 Kč"}},null,"Výživné",null,null,{"$f":"Tabulka12[[#This Row],[Předpokládané náklady]]-Tabulka12[[#This Row],[Skutečné náklady]]","v":{"v":0,"d":"0 Kč"}}]
[{"$nulls":6},"Platby za držbu nebo odhadce",null,null,{"$f":"Tabulka12[[#This Row],[Předpokládané náklady]]-Tabulka12[[#This Row],[Skutečné náklady]]","v":{"v":0,"d":"0 Kč"}}]
[null,"OSOBNÍ PÉČE","Předpokládané náklady","Skutečné náklady","Rozdíl",null,"Jiné",null,null,{"$f":"Tabulka12[[#This Row],[Předpokládané náklady]]-Tabulka12[[#This Row],[Skutečné náklady]]","v":{"v":0,"d":"0 Kč"}}]
[null,"Zdravotní péče",null,null,{"$f":"Tabulka7[[#This Row],[Předpokládané náklady]]-Tabulka7[[#This Row],[Skutečné náklady]]","v":{"v":0,"d":"0 Kč"}},null,"Celkem",{"$f":"SUBTOTAL(109,Tabulka12[Předpokládané náklady])","v":{"v":0,"d":"0 Kč"}},{"$f":"SUBTOTAL(109,Tabulka12[Skutečné náklady])","v":{"v":0,"d":"0 Kč"}},{"$f":"SUBTOTAL(109,Tabulka12[Rozdíl])","v":{"v":0,"d":"0 Kč"}}]
[null,"Vlasy a nehty",null,null,{"$f":"Tabulka7[[#This Row],[Předpokládané náklady]]-Tabulka7[[#This Row],[Skutečné náklady]]","v":{"v":0,"d":"0 Kč"}}]
[null,"Oblečení",null,null,{"$f":"Tabulka7[[#This Row],[Předpokládané náklady]]-Tabulka7[[#This Row],[Skutečné náklady]]","v":{"v":0,"d":"0 Kč"}},null,"PŘEDPOKLÁDANÉ NÁKLADY CELKEM",null,null,{"$f":"SUM(C23,C33,C40,C46,C54,C64,H22,H31,H38,H44,H50,H57)","v":{"v":2060,"d":"2,060 Kč"}}]
[null,"Čistírna",null,null,{"$f":"Tabulka7[[#This Row],[Předpokládané náklady]]-Tabulka7[[#This Row],[Skutečné náklady]]","v":{"v":0,"d":"0 Kč"}}]
[null,"Fitness",null,null,{"$f":"Tabulka7[[#This Row],[Předpokládané náklady]]-Tabulka7[[#This Row],[Skutečné náklady]]","v":{"v":0,"d":"0 Kč"}},null,"SKUTEČNÉ NÁKLADY CELKEM",null,null,{"$f":"SUM(D23,D33,D40,D46,D54,D64,I22,I31,I38,I44,I50,I57)","v":{"v":2040,"d":"2,040 Kč"}}]
[null,"Členské příspěvky a poplatky",null,null,{"$f":"Tabulka7[[#This Row],[Předpokládané náklady]]-Tabulka7[[#This Row],[Skutečné náklady]]","v":{"v":0,"d":"0 Kč"}}]
[null,"Jiné",null,null,{"$f":"Tabulka7[[#This Row],[Předpokládané náklady]]-Tabulka7[[#This Row],[Skutečné náklady]]","v":{"v":0,"d":"0 Kč"}},null,"CELKOVÝ ROZDÍL",null,null,{"$f":"SUM(E23,E33,E40,E46,E54,E64,J22,J31,J38,J44,J50,J57)","v":{"v":20,"d":"20 Kč"}}]
[null,"Celkem",{"$f":"SUBTOTAL(109,Tabulka7[Předpokládané náklady])","v":{"v":0,"d":"0 Kč"}},{"$f":"SUBTOTAL(109,Tabulka7[Skutečné náklady])","v":{"v":0,"d":"0 Kč"}},{"$f":"SUBTOTAL(109,Tabulka7[Rozdíl])","v":{"v":0,"d":"0 Kč"}}]